fUSD/lending_fUSD_20241009
["ID","MTS","AMOUNT","RATE_DAILY","PERIOD"]
[340066280,1728450632178,-316.11,0.00020983,2]
[340066281,1728450632188,-150.0,0.00021006,2]
[340066282,1728450632197,-251.44219472,0.00021023,2]
[340066283,1728450632216,-3680.83258056,0.00021023,2]
[340066284,1728450632227,-890.28789772,0.00021023,2]
[340066285,1728450632239,-899.999998,0.00021023,2]
[340066286,1728450632260,-328.1431498,0.00021023,2]
[340066290,1728450638167,-402.13601952,0.00021023,2]
[340066291,1728450638221,-598.5770164,0.00021023,2]
[340066313,1728450640524,-442.54365076,0.00021023,2]
[340066366,1728451832167,-1100.52168804,0.000171,2]
[340066368,1728451832178,-1281.47831196,0.000171,2]
[340066370,1728451832189,-507.43872926,0.00017435,2]
[340066371,1728451832198,-408.54306776,0.00017535,2]
[340066372,1728451832207,-408.54306776,0.00018007,2]
[340066373,1728451832217,-408.54306776,0.00018121,2]
[340066374,1728451832227,-346.61,0.00018195,2]
[340066375,1728451832236,-408.54306776,0.00018574,2]
[340066376,1728451832247,-408.54306776,0.0001873,2]
[340066377,1728451832257,-1762.399701,0.00018959,2]
[340066378,1728451832267,-637.4473,0.00019055,2]
[340066379,1728451832276,-408.54306776,0.00019124,2]
[340066380,1728451832285,-408.54306776,0.00019225,2]
[340066381,1728451832295,-408.54306776,0.00019662,2]
[340066382,1728451832305,-408.54306776,0.00019806,2]
[340066383,1728451832315,-150.55,0.00020041,2]
[340066384,1728451832324,-1036.83,0.00020101,2]
[340066385,1728451832333,-155.78,0.00020123,2]
[340066386,1728451832343,-200.0,0.00020123,2]
[340066387,1728451832352,-200.0,0.00020126,2]
[340066388,1728451832362,-250.0,0.00020128,2]
[340066389,1728451832372,-1000.0,0.00020142,2]
[340066390,1728451832381,-408.54306776,0.00020143,2]
[340066391,1728451832391,-266.43128528,0.0002015,2]
[340066392,1728451832403,-447.74863162,0.0002015,2]
[340066393,1728451832414,-699.12913471,0.0002015,2]
[340066394,1728451832429,-439.11094839,0.0002015,2]
[340066395,1728451832439,-2152.96691245,0.00020154,2]
[340066396,1728451838316,-4885.00308755,0.00020154,2]
[340066397,1728451838327,-250.0,0.00020169,2]
[340066398,1728451838337,-419.49,0.00020171,2]
[340066399,1728451838346,-150.0,0.00020231,2]
[340066400,1728451838355,-243.5,0.00020256,2]
[340066401,1728451838364,-408.54306776,0.00020337,2]
[340066402,1728451838373,-346.61,0.00020459,2]
[340066403,1728451838526,-250.0,0.00020557,2]
[340066404,1728451838535,-152.00320448,0.00020564,2]
[340066405,1728451838544,-188.51,0.00020578,2]
[340066406,1728451838553,-177.38,0.00020673,2]
[340066407,1728451838562,-408.54306783,0.0002082,2]
[340066408,1728451838571,-223.95,0.00021161,2]
[340066409,1728451838580,-167.29,0.00021378,2]
[340066410,1728451838589,-303.4,0.00022082,2]
[340066411,1728451838598,-152.47,0.00022082,2]
[340066412,1728451838607,-153.25,0.00022137,30]
[340066413,1728451838616,-167.08,0.00022232,2]
[340066414,1728451838625,-161.68,0.00022319,2]
[340066415,1728451838634,-183.83,0.00022434,2]
[340066416,1728451838643,-183.83,0.00022471,2]
[340066417,1728451838653,-423.81,0.0002249,2]
[340066418,1728451838662,-3000.0,0.000225,2]
[340066419,1728451838670,-183.83,0.00022509,2]
[340066420,1728451838679,-183.83,0.00022546,2]
[340066421,1728451838688,-424.2489444,0.00022642,2]
[340066422,1728451838700,-968.8285,0.00022642,2]
[340066423,1728451838710,-1654.3905,0.00022642,2]
[340066424,1728451838719,-1000.0,0.00022642,2]
[340066425,1728451838728,-2500.0,0.00022642,2]
[340066426,1728451838737,-1000.0,0.00022659,2]
[340066427,1728451838746,-346.61,0.00022723,2]
[340066428,1728451838755,-423.81,0.00022732,2]
[340066429,1728451838763,-423.81,0.00022732,2]
[340066430,1728451838777,-7500.0,0.00022732,2]
[340066431,1728451838789,-1523.25,0.0002274,2]
[340066432,1728451838798,-661.91879698,0.00022742,2]
[340066433,1728451838807,-2078.5959,0.00022742,2]
[340066434,1728451838815,-253.6308,0.00022742,2]
[340066436,1728451838824,-131937.7959,0.00022742,2]
[340066438,1728451838834,-1830.4686,0.00022742,2]
[340066440,1728451838843,-166.32413658,0.00022752,2]
[340066442,1728451838852,-400.0,0.000228,8]
[340066444,1728451838861,-30232.51546564,0.00022822,4]
[340066448,1728451838887,-4844.58085956,0.00022822,4]
[340066450,1728451838899,-422.76602723,0.00022832,2]
[340066452,1728451838909,-13089.2669483,0.00022839,4]
[340066463,1728451840423,-3208.84721751,0.00020256,2]
[340066464,1728451840433,-4449.2812143,0.00022839,4]
[340066465,1728451840442,-2028.29597189,0.00022839,2]
[340066466,1728451840452,-461.73082841,0.00022841,2]
[340066467,1728451840461,-404.259284,0.00022842,7]
[340066468,1728451840471,-404.259284,0.00022842,7]
[340066469,1728451840480,-151.0,0.00022842,7]
[340066470,1728451840490,-151.0,0.00022842,7]
[340066471,1728451840499,-151.0,0.00022842,7]
[340066472,1728451840508,-151.0,0.00022842,7]
[340066473,1728451840518,-151.0,0.00022842,7]
[340066474,1728451840528,-241.160257,0.00022842,7]
[340066475,1728451840537,-241.160257,0.00022842,7]
[340066476,1728451840546,-151.0,0.00022842,7]
[340066477,1728451840555,-151.0,0.00022842,7]
[340066478,1728451840564,-151.0,0.00022842,7]
[340066479,1728451840574,-151.0,0.00022842,7]
[340066480,1728451840583,-151.0,0.00022842,7]
[340066481,1728451840593,-234.874636,0.00022842,7]
[340066482,1728451840602,-80192.33770665,0.00022842,4]
[340066483,1728451840614,-1025.24744927,0.00022842,4]
[340066484,1728451840625,-1439.07083368,0.00022842,4]
[340066490,1728451840769,-69023.27596724,0.00022842,4]
[340066492,1728451840782,-961.27203814,0.00022842,4]
[340066496,1728451843264,-627.59413878,0.00022842,4]
[340066497,1728451843323,-778.84,0.00022842,4]
[340066498,1728451843383,-478.6711612,0.00022842,4]
[340066499,1728451843394,-1968.40098272,0.00022842,4]
[340066507,1728451846308,-1473.03752252,0.00022842,4]
[340066508,1728451846532,-3659.26619472,0.00022842,4]
[340066509,1728451846544,-136528.30476908,0.00022842,4]
[340066510,1728451846553,-37631.57624904,0.00022842,4]
[340066512,1728452010619,250.0,0.00011,2]
[340066516,1728452839129,1200.28,0.000215,90]
[340066525,1728453031425,-300.0,0.00013,2]
[340066526,1728453031436,-105.35,0.00015,2]
[340066527,1728453031594,-244.65,0.00015,2]
[340066528,1728453031603,-352.06,0.00019178,2]
[340066529,1728453031612,-250.0,0.00020976,2]
[340066530,1728453031622,-150.52,0.00021104,2]
[340066531,1728453031631,-200.0,0.00021157,2]
[340066532,1728453031640,-532.43927796,0.00021158,2]
[340066533,1728453031651,-1147.25072204,0.00021158,2]
[340066534,1728453031661,-250.0,0.00021172,2]
[340066535,1728453031670,-71.27106614,0.00021196,2]
[340066536,1728453031685,-1921.29893386,0.00021196,2]
[340066537,1728453031694,-4267.81,0.00021198,2]
[340066538,1728453031704,-1538.38,0.00021198,2]
[340066539,1728453031714,-177.38,0.00021202,2]
[340066540,1728453031723,-150.0,0.00021216,2]
[340066541,1728453031735,-600.0,0.00021233,2]
[340066542,1728453031744,-250.0,0.00021237,2]
[340066543,1728453031753,-706.27,0.00021264,2]
[340066544,1728453031762,-1739.68,0.00021355,2]
[340066545,1728453031773,-352.06,0.00021441,2]
[340066546,1728453031782,-184.07,0.00021723,2]
[340066547,1728453031793,-213.78,0.00021799,2]
[340066548,1728453031802,-400.0,0.0002184,2]
[340066549,1728453031811,-213.78,0.00021908,2]
[340066550,1728453031820,-153.25,0.00022137,30]
[340066551,1728453031829,-223.64,0.00022153,2]
[340066552,1728453031838,-35391.0,0.00022397,2]
[340066553,1728453031847,-150.48,0.00022434,2]
[340066554,1728453031856,-3000.0,0.000225,2]
[340066555,1728453031865,-5426.8,0.00022562,2]
[340066556,1728453031874,-1302.33,0.00022767,2]
[340066557,1728453031883,-400.0,0.000228,8]
[340066558,1728453031892,-281.84401815,0.00022832,2]
[340066559,1728453031901,-323.21157989,0.00022841,2]
[340066560,1728453031910,-75951.43146772,0.00022842,4]
[340066563,1728453037519,-529.76522685,0.00022742,2]
[340066564,1728453037630,-88.02565035,0.00022742,2]
[340066565,1728453037639,-218.39802909,0.00022842,4]
[340066566,1728453037686,-314.51665024,0.00022842,4]
[340066567,1728453037697,-7635.85806297,0.00022842,4]
[340066568,1728453037851,-28955.39509402,0.00022842,4]
[340066576,1728453039428,-567.865028,0.00022842,4]
[340066595,1728453042600,-543.803081,0.00022842,4]
[340066608,1728454231578,-160.15,0.00016388,2]
[340066609,1728454231587,-205.03013912,0.000176,2]
[340066610,1728454231638,-839.96986088,0.000176,2]
[340066611,1728454231647,-368.06,0.00018592,2]
[340066612,1728454231657,-300.0,0.00019725,2]
[340066613,1728454231666,-213.0,0.0002013,2]
[340066614,1728454231675,-250.0,0.00020281,2]
[340066615,1728454231685,-247.38,0.000203,2]
[340066616,1728454231695,-286.38,0.000203,2]
[340066617,1728454231704,-495.24882468,0.00020331,2]
[340066618,1728454231716,-2320.0000004,0.00020331,2]
[340066619,1728454231757,-925.1775,0.00020331,2]
[340066620,1728454231768,-487.37367492,0.00020331,2]
[340066621,1728454231778,-177.38,0.00020339,2]
[340066622,1728454231787,-500.0,0.00020426,2]
[340066623,1728454231796,-1852.42,0.00020436,2]
[340066624,1728454231806,-300.0,0.00020437,2]
[340066625,1728454231815,-975.09,0.00020437,2]
[340066626,1728454231824,-499.99,0.00020437,2]
[340066627,1728454231833,-250.0,0.00020438,2]
[340066628,1728454231843,-23880.0,0.00020438,2]
[340066629,1728454231852,-250.0,0.00020438,2]
[340066630,1728454231861,-1795.14,0.00020438,2]
[340066631,1728454231871,-213.0,0.0002048,2]
[340066633,1728454231880,-500.0,0.00020508,2]
[340066635,1728454231890,-150.0,0.00020514,2]
[340066637,1728454231899,-480.0,0.00020535,2]
[340066639,1728454231908,-240.59948295,0.00020564,2]
[340066641,1728454231917,-150.46,0.00020573,2]
[340066643,1728454231927,-943.09,0.00020609,2]
[340066645,1728454231936,-150.7765264,0.00020667,2]
[340066647,1728454231945,-500.0,0.00020675,2]
[340066648,1728454231954,-200.0,0.00020697,2]
[340066650,1728454231963,-294.18,0.00020768,2]
[340066652,1728454231972,-213.0,0.0002082,2]
[340066654,1728454231981,-368.06,0.00020856,2]
[340066656,1728454231991,-248.0852866,0.000209,2]
[340066657,1728454232000,-174.37,0.00021051,2]
[340066658,1728454232009,-213.0,0.0002117,2]
[340066659,1728454232018,-520.0,0.00021251,2]
[340066660,1728454232027,-164.42,0.00021459,2]
[340066661,1728454232036,-420.0,0.00021484,2]
[340066662,1728454232045,-213.0,0.0002151,2]
[340066663,1728454232054,-534.59,0.00021644,2]
[340066664,1728454232063,-225.24,0.0002179,2]
[340066665,1728454232072,-167.41,0.00021818,2]
[340066666,1728454232081,-213.0,0.0002186,2]
[340066667,1728454232090,-2866.0,0.00022,4]
[340066668,1728454232099,-1340.03018768,0.00022,4]
[340066669,1728454232113,-1000.0,0.00022045,2]
[340066670,1728454232122,-153.25,0.00022137,30]
[340066671,1728454232131,-213.0,0.000222,2]
[340066672,1728454232139,-214.0,0.000222,2]
[340066673,1728454232149,-301.48,0.00022356,2]
[340066674,1728454232158,-429.25,0.00022356,2]
[340066675,1728454232169,-150.0,0.00022356,2]
[340066676,1728454232182,-150.0,0.00022356,2]
[340066677,1728454232191,-371.46,0.00022356,2]
[340066678,1728454232200,-150.0,0.00022356,2]
[340066679,1728454232209,-153.13,0.00022356,2]
[340066680,1728454232218,-303.76,0.00022356,2]
[340066681,1728454232228,-150.0,0.00022356,2]
[340066682,1728454232239,-150.0,0.00022356,2]
[340066683,1728454232248,-358.83,0.00022356,2]
[340066684,1728454232258,-1012.0,0.000224,3]
[340066685,1728454232268,-1000.0,0.000224,4]
[340066686,1728454232279,-381.82404996,0.00022442,2]
[340066687,1728454232290,-3000.0,0.000225,2]
[340066688,1728454232300,-91048.0,0.000225,2]
[340066689,1728454232309,-413.00800588,0.00022512,2]
[340066690,1728454232318,-378.3943,0.00022532,2]
[340066691,1728454232327,-213.0,0.0002254,2]
[340066692,1728454232336,-214.0,0.0002254,2]
[340066693,1728454232346,-3983.62205525,0.00022632,2]
[340066694,1728454237659,-9449.0780689,0.00022632,2]
[340066695,1728454237961,-71059.64687585,0.00022632,2]
[340066696,1728454237972,-7500.0,0.00022632,2]
[340066697,1728454237982,-190.17422917,0.00022641,2]
[340066698,1728454237992,-400.665692,0.00022642,7]
[340066699,1728454238001,-400.665692,0.00022642,7]
[340066700,1728454238009,-151.0,0.00022642,7]
[340066701,1728454238018,-151.0,0.00022642,7]
[340066702,1728454238029,-1088.4182,0.00022642,2]
[340066703,1728454238039,-3146.4452,0.00022642,2]
[340066705,1728454238049,-910.4315,0.00022642,2]
[340066707,1728454238058,-12429.5459,0.00022642,2]
[340066709,1728454238068,-10039.1193,0.00022642,2]
[340066711,1728454238077,-22639.4432,0.00022642,2]
[340066713,1728454238087,-1427.0446,0.00022642,2]
[340066715,1728454238096,-1837.20163,0.000227,2]
[340066717,1728454238105,-300.0,0.000227,8]
[340066719,1728454238117,-400.665692,0.00022722,7]
[340066721,1728454238127,-400.665692,0.00022722,7]
[340066723,1728454238136,-151.0,0.00022722,7]
[340066725,1728454238147,-151.0,0.00022722,7]
[340066726,1728454238158,-71581.2346597,0.00022722,5]
[340066727,1728454238166,-5506.24881998,0.00022732,5]
[340066728,1728454238175,-151.0,0.00022732,7]
[340066729,1728454238185,-151.0,0.00022732,7]
[340066730,1728454238194,-151.0,0.00022732,7]
[340066731,1728454238203,-217.044231,0.00022732,7]
[340066732,1728454238215,-151.0,0.00022732,7]
[340066733,1728454238225,-217.044231,0.00022732,7]
[340066734,1728454238236,-151.0,0.00022732,7]
[340066735,1728454238246,-363.833356,0.00022732,7]
[340066736,1728454238256,-363.833356,0.00022732,7]
[340066737,1728454238265,-400.665692,0.00022732,7]
[340066738,1728454238274,-400.665692,0.00022732,7]
[340066739,1728454238284,-400.665692,0.00022732,7]
[340066740,1728454238293,-400.665692,0.00022732,7]
[340066741,1728454238302,-152.568288,0.00022732,7]
[340066742,1728454238311,-151.0,0.00022732,7]
[340066743,1728454238321,-254.854317,0.00022732,7]
[340066744,1728454238330,-35790.6173299,0.00022732,5]
[340066745,1728454238339,-106494.931695,0.00022732,5]
[340066746,1728454238348,-326.18025816,0.00022732,2]
[340066747,1728454238357,-1821.07599664,0.00022739,2]
[340066748,1728454238366,-287.96814625,0.00022741,2]
[340066749,1728454238375,-151.0,0.00022742,7]
[340066750,1728454238384,-151.0,0.00022742,7]
[340066751,1728454238393,-151.0,0.00022742,7]
[340066752,1728454238401,-151.0,0.00022742,7]
[340066753,1728454238411,-151.084262,0.00022742,7]
[340066754,1728454238420,-151.0,0.00022742,7]
[340066755,1728454238429,-179.274814,0.00022742,7]
[340066756,1728454238439,-151.0,0.00022742,7]
[340066757,1728454238448,-151.0,0.00022742,7]
[340066758,1728454238457,-263.825438,0.00022742,7]
[340066759,1728454238467,-191.709535,0.00022742,7]
[340066760,1728454238476,-191.709535,0.00022742,7]
[340066761,1728454238486,-191.709535,0.00022742,7]
[340066762,1728454238497,-151.0,0.00022742,7]
[340066763,1728454238506,-151.0,0.00022742,7]
[340066764,1728454238516,-151.0,0.00022742,7]
[340066765,1728454238525,-191.709535,0.00022742,7]
[340066766,1728454238536,-191.709535,0.00022742,7]
[340066767,1728454238545,-191.709535,0.00022742,7]
[340066768,1728454238555,-151.0,0.00022742,7]
[340066769,1728454238564,-151.0,0.00022742,7]
[340066770,1728454238573,-151.0,0.00022742,7]
[340066771,1728454238582,-152.14878,0.00022742,7]
[340066772,1728454238592,-217.044231,0.00022742,7]
[340066773,1728454238602,-217.044231,0.00022742,7]
[340066774,1728454238612,-217.044231,0.00022742,7]
[340066775,1728454238622,-151.0,0.00022742,7]
[340066776,1728454238632,-232.614953,0.00022742,7]
[340066777,1728454238644,-217.044231,0.00022742,7]
[340066778,1728454238654,-217.044231,0.00022742,7]
[340066779,1728454238664,-217.044231,0.00022742,7]
[340066780,1728454238673,-151.0,0.00022742,7]
[340066781,1728454238682,-151.0,0.00022742,7]
[340066782,1728454238692,-151.0,0.00022742,7]
[340066783,1728454238702,-363.833356,0.00022742,7]
[340066784,1728454238710,-363.833356,0.00022742,7]
[340066785,1728454238720,-363.833356,0.00022742,7]
[340066786,1728454238729,-363.833356,0.00022742,7]
[340066787,1728454238738,-363.833356,0.00022742,7]
[340066788,1728454238747,-363.833356,0.00022742,7]
[340066789,1728454238756,-400.665692,0.00022742,7]
[340066790,1728454238766,-400.665692,0.00022742,7]
[340066791,1728454238775,-400.665692,0.00022742,7]
[340066792,1728454238783,-400.665692,0.00022742,7]
[340066793,1728454238793,-400.665692,0.00022742,7]
[340066794,1728454238802,-400.665692,0.00022742,7]
[340066795,1728454238811,-68701.4722,0.00022742,2]
[340066796,1728454238820,-245000.0,0.00022742,2]
[340066797,1728454238830,-500.0,0.00022742,2]
[340066798,1728454238839,-1000.0,0.00022742,2]
[340066799,1728454238848,-262.2143,0.00022742,2]
[340066800,1728454238858,-37593.9223,0.00022742,2]
[340066801,1728454238868,-153.69821868,0.00022752,2]
[340066802,1728454238878,-217.0,0.00022752,2]
[340066803,1728454238890,-700.0,0.000228,8]
[340066804,1728454238900,-400.665692,0.00022822,7]
[340066805,1728454238910,-400.665692,0.00022822,7]
[340066806,1728454238921,-544.15127079,0.00022822,5]
[340066807,1728454238934,-84651.79408511,0.00022822,5]
[340066808,1728454238943,-10649.4931695,0.00022829,5]
[340066809,1728454238953,-217.044231,0.00022832,7]
[340066810,1728454238962,-217.044231,0.00022832,7]
[340066811,1728454238971,-254.570191,0.00022832,7]
[340066812,1728454238979,-363.833356,0.00022832,7]
[340066813,1728454238989,-363.833356,0.00022832,7]
[340066814,1728454238998,-217.044231,0.00022839,7]
[340066815,1728454239007,-217.044231,0.00022839,7]
[340066816,1728454239016,-363.833356,0.00022839,7]
[340066817,1728454239025,-363.833356,0.00022839,7]
[340066818,1728454239034,-793.58569508,0.0002284,2]
[340066819,1728454239043,-4396.16544827,0.0002284,2]
[340066820,1728454239052,-150.0,0.00022841,2]
[340066821,1728454239060,-153.119347,0.00022842,7]
[340066822,1728454239070,-151.0,0.00022842,7]
[340066823,1728454239078,-151.0,0.00022842,7]
[340066824,1728454239087,-191.709535,0.00022842,7]
[340066825,1728454239096,-191.709535,0.00022842,7]
[340066826,1728454239105,-191.709535,0.00022842,7]
[340066827,1728454239114,-151.0,0.00022842,7]
[340066828,1728454239123,-151.0,0.00022842,7]
[340066829,1728454239133,-151.0,0.00022842,7]
[340066830,1728454239143,-191.709535,0.00022842,7]
[340066831,1728454239151,-191.709535,0.00022842,7]
[340066832,1728454239160,-191.709535,0.00022842,7]
[340066833,1728454239169,-261.698416,0.00022842,7]
[340066834,1728454239178,-400.665692,0.00022842,7]
[340066835,1728454239187,-400.665692,0.00022842,7]
[340066836,1728454239197,-14819.20029647,0.00022842,5]
[340066837,1728454239650,-3419.66359288,0.00022842,5]
[340066838,1728454240038,-267.64443312,0.00022842,5]
[340066841,1728454242964,-21918.206,0.00022842,5]
[340066851,1728454871901,154.46,0.00010959,2]
[340066866,1728455431736,-551.40134437,0.000185,2]
[340066867,1728455431874,-1592.59865563,0.000185,2]
[340066868,1728455431884,-3555.00664353,0.00019536,2]
[340066869,1728455431895,-347.49,0.00019636,2]
[340066870,1728455431904,-156.95550245,0.000201,2]
[340066871,1728455431913,-150.45,0.00021277,2]
[340066872,1728455431922,-15268.63,0.00021377,2]
[340066873,1728455431932,-250.0,0.00021482,2]
[340066874,1728455431942,-636.81,0.00021486,2]
[340066875,1728455431951,-250.0,0.00021502,2]
[340066876,1728455431962,-358.83,0.00021534,2]
[340066877,1728455431972,-150.0,0.00021534,2]
[340066878,1728455431982,-150.0,0.00021534,2]
[340066879,1728455431992,-150.0,0.00021534,2]
[340066880,1728455432001,-250.0,0.00021566,2]
[340066881,1728455432012,-1000.0,0.00021566,2]
[340066882,1728455432022,-499.99,0.00021581,2]
[340066883,1728455432032,-150.0,0.00021778,2]
[340066884,1728455432041,-347.49,0.000219,2]
[340066885,1728455432050,-150.0,0.00021978,2]
[340066886,1728455432059,-153.25,0.00022137,30]
[340066887,1728455432069,-3000.0,0.000225,2]
[340066888,1728455432078,-329.96502921,0.00022632,2]
[340066889,1728455432087,-1035.88445813,0.00022658,10]
[340066890,1728455438056,-600.0,0.00022658,10]
[340066891,1728455438275,-364.11554187,0.00022658,10]
[340066892,1728455438284,-385.88445813,0.00022673,2]
[340066954,1728455442897,-114.11554187,0.00022673,2]
[340066955,1728455442910,-213.32300168,0.0002268,2]
[340066957,1728455748120,250.0,0.00011,2]
[340067011,1728456631887,-345.1,0.00019708,2]
[340067012,1728456631896,-300.0,0.00019725,2]
[340067013,1728456631906,-250.0,0.00021343,2]
[340067014,1728456631915,-250.0,0.00021354,2]
[340067015,1728456631924,-150.45,0.00021371,2]
[340067016,1728456631933,-236.750026,0.00021404,2]
[340067017,1728456631989,-711.399974,0.00021404,2]
[340067018,1728456631998,-52.7593646,0.00021412,2]
[340067019,1728456632167,-197.2406354,0.00021412,2]
[340067020,1728456632176,-344.84893194,0.00021469,2]
[340067021,1728456632187,-140.23106806,0.00021469,2]
[340067023,1728456632196,-420.0,0.00021484,2]
[340067025,1728456632205,-800.0,0.00021542,2]
[340067026,1728456632214,-177.38,0.0002169,2]
[340067028,1728456632223,-200.0,0.00021862,2]
[340067030,1728456632232,-345.1,0.00021972,2]
[340067032,1728456632241,-467.69957194,0.00022,2]
[340067054,1728456643285,-150.45,0.00021679,2]
[340067055,1728456643295,-4532.30042806,0.00022,2]
[340067056,1728456643307,-153.25,0.00022137,30]
[340067057,1728456643317,-3000.0,0.000225,2]
[340067058,1728456643328,-598.1049,0.0002257,2]
[340067059,1728456643339,-500.0,0.00022573,2]
[340067060,1728456643348,-173.66652308,0.00022579,2]
[340067061,1728456643358,-53255.2463,0.0002258,2]
[340067062,1728456643367,-3839.30529606,0.0002258,2]
[340067063,1728456643379,-28480.93640394,0.0002258,2]
[340067064,1728456643388,-361.6789,0.0002258,2]
[340067065,1728456643398,-500.0,0.0002258,2]
[340067066,1728456643408,-5661.333,0.0002258,2]
[340067067,1728456643417,-2500.0,0.0002258,2]
[340067068,1728456643427,-288.71940055,0.000226,2]
[340067069,1728456643437,-856.07961579,0.000226,2]
[340067070,1728456643446,-2000.0,0.00022658,10]
[340067071,1728456643456,-93729.137283,0.0002267,4]
[340067072,1728456643465,-288936.11987977,0.0002268,2]
[340067073,1728456643475,-300.0,0.000227,8]
[340067074,1728456643485,-153.69821865,0.00022752,2]
[340067075,1728456643494,-225.24,0.00022789,2]
[340067076,1728456643504,-6500.0,0.000228,4]
[340067077,1728456643513,-600.0,0.000228,8]
[340067078,1728456643522,-15621.5228805,0.00022805,4]
[340067079,1728456643532,-217.45350544,0.00022812,2]
[340067080,1728456643541,-201.57770237,0.00022815,2]
[340067081,1728456643550,-15621.5228805,0.00022815,4]
[340067082,1728456643560,-15621.5228805,0.00022816,4]
[340067083,1728456643569,-1618.73421924,0.0002282,2]
[340067084,1728456643578,-151.0,0.00022822,7]
[340067085,1728456643588,-151.0,0.00022822,7]
[340067086,1728456643598,-151.0,0.00022822,7]
[340067087,1728456643607,-9135.38036007,0.00022822,4]
[340067088,1728456643617,-73402.34286975,0.00022822,4]
[340067110,1728456645973,-16739.17611555,0.00022822,4]
[340067142,1728457069628,157.83,0.00010959,2]
[340067147,1728457832067,-1010.0,0.000193,3]
[340067148,1728457832077,-339.72,0.000195,2]
[340067149,1728457832086,-150.44,0.00021289,2]
[340067150,1728457832095,-360.0,0.0002136,2]
[340067151,1728457832104,-640.0,0.0002145,2]
[340067152,1728457832113,-250.0,0.00021456,2]
[340067153,1728457832123,-250.0,0.00021493,2]
[340067154,1728457832132,-250.0,0.00021517,2]
[340067155,1728457832141,-517.47,0.00021565,2]
[340067156,1728457832150,-339.72,0.00021764,2]
[340067157,1728457832160,-200.0,0.000218,7]
[340067158,1728457832169,-500.0,0.000219,7]
[340067159,1728457832177,-167.41,0.0002198,2]
[340067160,1728457832186,-153.25,0.00022137,30]
[340067161,1728457832196,-343.64164491,0.0002236,2]
[340067162,1728457832205,-894.65012744,0.00022367,2]
[340067163,1728457832214,-252.62947549,0.0002237,2]
[340067164,1728457832224,-2500.0,0.0002237,2]
[340067165,1728457832233,-150.0,0.00022459,2]
[340067166,1728457832242,-47166.49115711,0.0002246,4]
[340067167,1728457832253,-13024.37793672,0.0002246,4]
[340067168,1728457832264,-229779.57415117,0.0002246,4]
[340067169,1728457832274,-116136.08369281,0.0002246,4]
[340067170,1728457832285,-1523.59407502,0.0002246,4]
[340067171,1728457832300,-59025.18810391,0.0002246,4]
[340067172,1728457832312,-5601.1838252,0.0002246,4]
[340067173,1728457832323,-2131.03440012,0.0002246,4]
[340067174,1728457832335,-387.02289021,0.0002246,4]
[340067175,1728457832346,-270.26587227,0.0002246,4]
[340067176,1728457832357,-669.94125223,0.0002246,4]
[340067177,1728457832368,-909.82345012,0.0002246,4]
[340067178,1728457832380,-8409.06848087,0.0002246,4]
[340067179,1728457832391,-36090.77417723,0.0002246,4]
[340067180,1728457832402,-13698.38536391,0.0002246,4]
[340067181,1728457832413,-684.71908266,0.0002246,4]
[340067182,1728457832424,-915.29707946,0.0002246,4]
[340067183,1728457832434,-900.0,0.0002246,4]
[340067185,1728457832445,-913.26386626,0.0002246,4]
[340067187,1728457832456,-307.8334,0.0002246,4]
[340067189,1728457832467,-251.40209908,0.0002246,4]
[340067192,1728457832486,-15072.09194264,0.0002246,4]
[340067194,1728457832497,-217.45350544,0.0002246,2]
[340067196,1728457832506,-3601.67957956,0.00022467,2]